[Event "FIDE Womens Grand Prix-I 2022-23"]
[Site "Nur-Sultan"]
[Date "2022.09.25"]
[Round "7.6"]
[White "Abdumalik, Zhansaya"]
[Black "Kosteniuk, Alexandra"]
[Result "0-1"]
[ECO "C50"]
[WhiteElo "2503"]
[BlackElo "2521"]
[Annotator "TA"]
[PlyCount "50"]
[EventDate "2022.09.15"]
[EventType "tourn"]
[EventCountry "KAZ"]
[SourceTitle "playchess.com"]
[Source "ChessBase"]
[SourceQuality "1"]
[TimeControl "40/5400+30:1800+30"]

{[%evp 9,50,19,13,12,8,16,11,11,8,0,4,6,14,-27,29,30,65,86,65,-25,-28,-66,0,-73,-102,-455,-450,-601,-568,-548,-547,-753,-756,-958,-927,-1124,-1060,-984,-726,-995,-494,-464,-456]} 1. e4 {[%emt 0:00:03]} e5 {[%emt 0:00:05]} 2. Nf3 {[%emt 0:00:07]} Nc6 {[%emt 0:00:04]} 3. Bc4 {[%emt 0:00:07]} Bc5 {[%emt 0:00:05]} 4. d3 {[%emt 0:00:37]} Nf6 {[%emt 0:00:11]} 5. O-O {[%emt 0:00:06]} O-O {[%emt 0:00:12]} 6. Re1 {[%emt 0:00:28] C50: Hungarian Defence and Giuoco Pianissimo.} Ng4 $1 {[%emt 0:01:02][%mdl 4] outshines the older 6...d6.} 7. Re2 {[%emt 0:03:16]} Kh8 {[%emt 0:00:15]} 8. h3 {[%emt 0:00:21] The position is equal.} f5 {[%emt 0:00:11]} 9. Bg5 {[%emt 0:00:15]} ({Reject} 9. hxg4 fxg4 10. Ng5 Qf6 $15) 9... Nf6 {[%emt 0:08:54]} 10. Nc3 {[%emt 0:00:15]} d6 {[%emt 0:06:37][%cal Bd7d6,Bd6d5][%mdl 32]} 11. exf5 {[%emt 0:01:21] [#]} Nd4 $5 $146 {[%emt 0:05:02][%mdl 8] New and interesting.} ({Black should play} 11... Bxf5 12. Ne4 Bxe4 13. dxe4 Qe8) ({Predecessor:} 11... Bxf5 12. Na4 Bb6 13. Nxb6 axb6 14. d4 h6 15. dxe5 dxe5 16. Bh4 e4 17. Nh2 Qe7 {0-1 (46) Dominguez Perez,L (2754)-Aronian,L (2775) chess24.com INT 2022}) 12. Nxd4 $11 {[%emt 0:04:47]} Bxd4 {[%emt 0:00:05]} 13. g4 {[%emt 0:02:32]} c6 {[%emt 0:00:11] Against Bd5} 14. a4 {[%emt 0:02:13]} (14. Bb3 $14) 14... d5 {[%emt 0:03:23]} 15. Bb3 {[%emt 0:00:13]} Qd6 {[%emt 0:01:49]} ({Better is} 15... g6 $1 $15 16. fxg6 Qe8 17. g7+ Kxg7) 16. Kg2 {[%emt 0:02:05] [#]} (16. Qd2 $11 {keeps the balance.}) 16... g6 $1 $17 {[%emt 0:02:27]} 17. Qe1 $2 {[%emt 0:28:41][%mdl 8192] Loses the game.} (17. Ne4 $17 dxe4 18. dxe4) 17... gxf5 $19 {[%emt 0:01:14] Black is clearly winning.} 18. f3 {[%emt 0:00:04]} fxg4 {[%emt 0:06:44]} 19. hxg4 {[%emt 0:01:27] [#]} Nxg4 $1 {[%emt 0:02:44][%mdl 512] Strongly threatening ...Qg6.} 20. Qh4 {[%emt 0:07:30] [#]} (20. Qg3 Qg6) 20... Qg6 $1 {[%emt 0:05:35][%cal Of8f5] aiming for ...Rf5!} 21. fxg4 {[%emt 0:21:38] [#]} (21. Bd2 Nf2+) 21... Bxg4 $1 {[%emt 0:00:21][%mdl 512]} 22. Rf1 {[%emt 0:09:42]} (22. Qxg4 Rf5) 22... Bxe2 {[%emt 0:01:21]} 23. Nxe2 {[%emt 0:00:54]} Be3 {[%emt 0:00:17]} 24. Qg3 {[%emt 0:03:00]} Qxg5 {[%emt 0:00:26]} (24... Bxg5 $142 25. Qxe5+ Bf6+ 26. Qg3 Qe8) 25. Qxg5 {[%emt 0:00:13]} Bxg5 {[%emt 0:00:05] Weighted Error Value: White=1.05/Black=0.67} 0-1